[Event "Titled Tuesday Blitz December 14 2021"]
[White "Grandelius, Nils"]
[Black "Wagner, Dinara"]
[WhiteFideId "1710400"]
[BlackFideId "24157570"]
[WhiteElo "2617"]
[BlackElo "2216"]
[Result "1-0"]
[Round "08"]
[TimeControl "180+1"]
[Date "2021.12.14"]
[WhiteClock "0:00:13"]
[BlackClock "0:00:13"]

1. Nf3 {[%clk 0:03:00]}  d5 {[%clk 0:02:59]} 2. g3 {[%clk 0:03:01]}  c6 {[%clk 0:03:00]} 3. Bg2 {[%clk 0:03:01]}  Bf5 {[%clk 0:02:59]} 4. O-O {[%clk 0:02:58]}  Nf6 {[%clk 0:03:00]} 5. c4 {[%clk 0:02:59]}  e6 {[%clk 0:02:59]} 6. cxd5 {[%clk 0:02:59]}  exd5 {[%clk 0:02:59]} 7. Qb3 {[%clk 0:02:55]}  Qb6 {[%clk 0:02:56]} 8. d3 {[%clk 0:02:55]}  Nbd7 {[%clk 0:02:51]} 9. Be3 {[%clk 0:02:52]}  Qxb3 {[%clk 0:02:48]} 10. axb3 {[%clk 0:02:52]}  a6 {[%clk 0:02:49]} 11. Bd2 {[%clk 0:02:52]}  h6 {[%clk 0:02:38]} 12. b4 {[%clk 0:02:52]}  Be7 {[%clk 0:02:33]} 13. Bc3 {[%clk 0:02:53]}  O-O {[%clk 0:02:33]} 14. Nbd2 {[%clk 0:02:53]}  Bh7 {[%clk 0:02:32]} 15. Nb3 {[%clk 0:02:53]}  Ne8 {[%clk 0:02:21]} 16. Bh3 {[%clk 0:02:46]}  f5 {[%clk 0:02:09]} 17. Nfd4 {[%clk 0:02:39]}  Nd6 {[%clk 0:02:03]} 18. Nc5 {[%clk 0:02:39]}  Nxc5 {[%clk 0:01:51]} 19. bxc5 {[%clk 0:02:40]}  Nb5 {[%clk 0:01:52]} 20. Nxb5 {[%clk 0:02:34]}  axb5 {[%clk 0:01:51]} 21. Bd4 {[%clk 0:02:28]}  g5 {[%clk 0:01:48]} 22. Rfe1 {[%clk 0:02:20]}  Bg6 {[%clk 0:01:47]} 23. f3 {[%clk 0:01:54]}  Rfe8 {[%clk 0:01:44]} 24. Kf2 {[%clk 0:01:54]}  Kf7 {[%clk 0:01:44]} 25. b4 {[%clk 0:01:43]}  Bf6 {[%clk 0:01:43]} 26. Bxf6 {[%clk 0:01:38]}  Kxf6 {[%clk 0:01:44]} 27. f4 {[%clk 0:01:31]}  d4 {[%clk 0:01:43]} 28. Reb1 {[%clk 0:01:23]}  Bf7 {[%clk 0:01:42]} 29. Bg2 {[%clk 0:01:22]}  Kg6 {[%clk 0:01:28]} 30. Ke1 {[%clk 0:01:17]}  Kf6 {[%clk 0:01:29]} 31. Kd2 {[%clk 0:01:17]}  Bh5 {[%clk 0:01:29]} 32. Bf1 {[%clk 0:01:09]}  Bg4 {[%clk 0:01:28]} 33. Rc1 {[%clk 0:00:46]}  Bh5 {[%clk 0:01:28]} 34. Rcb1 {[%clk 0:00:46]}  Bg4 {[%clk 0:01:28]} 35. h3 {[%clk 0:00:39]}  Bh5 {[%clk 0:01:28]} 36. Re1 {[%clk 0:00:40]}  Bf7 {[%clk 0:01:24]} 37. Bg2 {[%clk 0:00:37]}  Bh5 {[%clk 0:01:24]} 38. Bf1 {[%clk 0:00:36]}  Bf7 {[%clk 0:01:23]} 39. Reb1 {[%clk 0:00:36]}  Bh5 {[%clk 0:01:23]} 40. Rd1 {[%clk 0:00:35]}  Bf7 {[%clk 0:01:23]} 41. Rdc1 {[%clk 0:00:35]}  Bh5 {[%clk 0:01:23]} 42. Rcb1 {[%clk 0:00:36]}  Bf7 {[%clk 0:01:23]} 43. Ra5 {[%clk 0:00:36]}  Rxa5 {[%clk 0:00:59]} 44. bxa5 {[%clk 0:00:37]}  Ra8 {[%clk 0:01:00]} 45. Rb4 {[%clk 0:00:38]}  gxf4 {[%clk 0:00:39]} 46. gxf4 {[%clk 0:00:37]}  Rxa5 {[%clk 0:00:39]} 47. Rxd4 {[%clk 0:00:37]}  b4 {[%clk 0:00:37]} 48. Rxb4 {[%clk 0:00:37]}  Rxc5 {[%clk 0:00:38]} 49. Rxb7 {[%clk 0:00:35]}  Ra5 {[%clk 0:00:38]} 50. Bg2 {[%clk 0:00:26]}  c5 {[%clk 0:00:38]} 51. Rc7 {[%clk 0:00:21]}  Ra2+ {[%clk 0:00:36]} 52. Ke3 {[%clk 0:00:21]}  Bh5 {[%clk 0:00:34]} 53. Rc6+ {[%clk 0:00:20]}  Kg7 {[%clk 0:00:33]} 54. Bf3 {[%clk 0:00:20]}  Bxf3 {[%clk 0:00:31]} 55. Kxf3 {[%clk 0:00:21]}  Rc2 {[%clk 0:00:31]} 56. h4 {[%clk 0:00:17]}  h5 {[%clk 0:00:27]} 57. Ke3 {[%clk 0:00:18]}  Rc1 {[%clk 0:00:21]} 58. Kd2 {[%clk 0:00:16]}  Rf1 {[%clk 0:00:21]} 59. e3 {[%clk 0:00:16]}  Rf2+ {[%clk 0:00:20]} 60. Kd1 {[%clk 0:00:16]}  Rf3 {[%clk 0:00:20]} 61. Ke2 {[%clk 0:00:16]}  Rh3 {[%clk 0:00:20]} 62. Rxc5 {[%clk 0:00:16]}  Kg6 {[%clk 0:00:20]} 63. Rc6+ {[%clk 0:00:16]}  Kg7 {[%clk 0:00:20]} 64. d4 {[%clk 0:00:15]}  Rxh4 {[%clk 0:00:21]} 65. d5 {[%clk 0:00:16]}  Rh2+ {[%clk 0:00:22]} 66. Kd3 {[%clk 0:00:16]}  Kf7 {[%clk 0:00:19]} 67. Rh6 {[%clk 0:00:15]}  h4 {[%clk 0:00:19]} 68. Kd4 {[%clk 0:00:15]}  h3 {[%clk 0:00:18]} 69. Ke5 {[%clk 0:00:13]}  Ke7 {[%clk 0:00:13]} 70. Kxf5 {[%clk 0:00:12]}  Rd2 {[%clk 0:00:12]} 71. Rxh3 {[%clk 0:00:10]}  Rxd5+ {[%clk 0:00:11]} 72. Ke4 {[%clk 0:00:11]}  Ra5 {[%clk 0:00:12]} 73. Rh7+ {[%clk 0:00:11]}  Kf6 {[%clk 0:00:12]} 74. Rh6+ {[%clk 0:00:12]}  Kg7 {[%clk 0:00:11]} 75. Rb6 {[%clk 0:00:12]}  Kf7 {[%clk 0:00:12]} 76. f5 {[%clk 0:00:11]}  Ke7 {[%clk 0:00:12]} 77. Kf4 {[%clk 0:00:11]}  Kf7 {[%clk 0:00:12]} 78. e4 {[%clk 0:00:12]}  Ke7 {[%clk 0:00:13]} 79. Rb7+ {[%clk 0:00:12]}  Kf6 {[%clk 0:00:13]} 80. e5+ {[%clk 0:00:13]} 1-0


[Site "https://www.chess.com"]

[Event "Titled Tuesday Blitz December 14 2021"]
[White "Guseva, Marina"]
[Black "Acor, Corey"]
[WhiteFideId "4149351"]
[BlackFideId "2024861"]
[WhiteElo "2279"]
[BlackElo "2303"]
[Result "0-1"]
[Round "08"]
[TimeControl "180+1"]
[Date "2021.12.14"]
[WhiteClock "0:00:03"]
[BlackClock "0:00:18"]

1. d4 {[%clk 0:03:00]}  Nf6 {[%clk 0:02:59]} 2. c4 {[%clk 0:03:00]}  e5 {[%clk 0:02:58]} 3. dxe5 {[%clk 0:02:59]}  Ng4 {[%clk 0:02:59]} 4. Bf4 {[%clk 0:02:59]}  Nc6 {[%clk 0:02:59]} 5. Nf3 {[%clk 0:02:58]}  Bb4+ {[%clk 0:02:59]} 6. Nbd2 {[%clk 0:02:58]}  Qe7 {[%clk 0:02:59]} 7. e3 {[%clk 0:02:58]}  Ngxe5 {[%clk 0:02:58]} 8. Nxe5 {[%clk 0:02:58]}  Nxe5 {[%clk 0:02:59]} 9. Be2 {[%clk 0:02:57]}  d6 {[%clk 0:02:57]} 10. O-O {[%clk 0:02:57]}  Bxd2 {[%clk 0:02:57]} 11. Qxd2 {[%clk 0:02:57]}  b6 {[%clk 0:02:58]} 12. b4 {[%clk 0:02:50]}  Nd7 {[%clk 0:02:51]} 13. Qc3 {[%clk 0:02:48]}  O-O {[%clk 0:02:48]} 14. Bf3 {[%clk 0:02:46]}  Rb8 {[%clk 0:02:39]} 15. a4 {[%clk 0:02:41]}  Bb7 {[%clk 0:02:37]} 16. Bxb7 {[%clk 0:02:40]}  Rxb7 {[%clk 0:02:38]} 17. a5 {[%clk 0:02:40]}  Re8 {[%clk 0:02:31]} 18. h3 {[%clk 0:02:39]}  h6 {[%clk 0:02:28]} 19. Ra2 {[%clk 0:02:27]}  Nf6 {[%clk 0:02:27]} 20. Rc1 {[%clk 0:02:18]}  g5 {[%clk 0:02:23]} 21. Bh2 {[%clk 0:02:15]}  Ne4 {[%clk 0:02:24]} 22. Qe1 {[%clk 0:02:09]}  f5 {[%clk 0:02:21]} 23. axb6 {[%clk 0:02:03]}  axb6 {[%clk 0:02:22]} 24. Kh1 {[%clk 0:01:42]}  Qf7 {[%clk 0:02:22]} 25. f3 {[%clk 0:01:39]}  Nf6 {[%clk 0:02:20]} 26. Re2 {[%clk 0:01:36]}  Qe6 {[%clk 0:02:15]} 27. c5 {[%clk 0:01:30]}  dxc5 {[%clk 0:02:13]} 28. bxc5 {[%clk 0:01:30]}  b5 {[%clk 0:02:14]} 29. c6 {[%clk 0:01:29]}  Rb6 {[%clk 0:02:13]} 30. Rec2 {[%clk 0:01:16]}  f4 {[%clk 0:02:11]} 31. e4 {[%clk 0:01:15]}  b4 {[%clk 0:02:11]} 32. Bg1 {[%clk 0:01:11]}  b3 {[%clk 0:02:11]} 33. Rb2 {[%clk 0:01:11]}  Rb5 {[%clk 0:02:09]} 34. Qc3 {[%clk 0:01:07]}  Kf7 {[%clk 0:02:05]} 35. Bd4 {[%clk 0:00:52]}  Nh5 {[%clk 0:02:04]} 36. Qd3 {[%clk 0:00:44]}  Reb8 {[%clk 0:02:05]} 37. Bc3 {[%clk 0:00:43]}  Rc5 {[%clk 0:01:51]} 38. e5 {[%clk 0:00:28]}  Ng3+ {[%clk 0:01:41]} 39. Kh2 {[%clk 0:00:27]}  Kg8 {[%clk 0:01:27]} 40. Rd1 {[%clk 0:00:23]}  Rxc6 {[%clk 0:01:24]} 41. Bd4 {[%clk 0:00:19]}  Rd8 {[%clk 0:01:16]} 42. Rbd2 {[%clk 0:00:15]}  Nf5 {[%clk 0:01:15]} 43. Qb1 {[%clk 0:00:13]}  Rc2 {[%clk 0:00:46]} 44. Bc3 {[%clk 0:00:10]}  Rdxd2 {[%clk 0:00:39]} 45. Bxd2 {[%clk 0:00:10]}  c5 {[%clk 0:00:34]} 46. Ba5 {[%clk 0:00:09]}  c4 {[%clk 0:00:26]} 47. Rd8+ {[%clk 0:00:08]}  Kf7 {[%clk 0:00:25]} 48. Qd1 {[%clk 0:00:07]}  Ne3 {[%clk 0:00:23]} 49. Rd7+ {[%clk 0:00:05]}  Kg6 {[%clk 0:00:22]} 50. Qd4 {[%clk 0:00:03]}  Rxg2+ {[%clk 0:00:17]} 51. Kh1 {[%clk 0:00:03]}  Qxh3# {[%clk 0:00:18]} 0-1


[Site "https://www.chess.com"]

[Event "Titled Tuesday Blitz December 14 2021"]
[White "Ibarra Jerez, Jose Carlos"]
[Black "Martinez Alcantara, Jose Eduardo"]
[WhiteFideId "2226332"]
[BlackFideId "3805662"]
[WhiteElo "2626"]
[BlackElo "2690"]
[Result "0-1"]
[Round "08"]
[TimeControl "180+1"]
[Date "2021.12.14"]
[WhiteClock "0:00:05"]
[BlackClock "0:00:05"]

1. Nf3 {[%clk 0:03:00]}  c5 {[%clk 0:03:00]} 2. g3 {[%clk 0:03:00]}  Nc6 {[%clk 0:03:00]} 3. Bg2 {[%clk 0:03:00]}  g6 {[%clk 0:03:01]} 4. O-O {[%clk 0:02:55]}  Bg7 {[%clk 0:03:01]} 5. c3 {[%clk 0:02:56]}  e5 {[%clk 0:03:01]} 6. d4 {[%clk 0:02:56]}  cxd4 {[%clk 0:03:02]} 7. cxd4 {[%clk 0:02:56]}  e4 {[%clk 0:03:03]} 8. Ne5 {[%clk 0:02:56]}  d5 {[%clk 0:03:03]} 9. Nc3 {[%clk 0:02:52]}  Nge7 {[%clk 0:03:02]} 10. Nxc6 {[%clk 0:02:52]}  bxc6 {[%clk 0:03:03]} 11. Bf4 {[%clk 0:02:50]}  O-O {[%clk 0:03:02]} 12. Rc1 {[%clk 0:02:49]}  Nf5 {[%clk 0:03:00]} 13. Na4 {[%clk 0:02:26]}  Nxd4 {[%clk 0:02:08]} 14. Be3 {[%clk 0:02:12]}  Nf5 {[%clk 0:02:03]} 15. Rxc6 {[%clk 0:02:07]}  Nxe3 {[%clk 0:02:02]} 16. fxe3 {[%clk 0:02:08]}  Qg5 {[%clk 0:01:38]} 17. Rf4 {[%clk 0:01:35]}  Be5 {[%clk 0:01:25]} 18. Nc3 {[%clk 0:01:34]}  Be6 {[%clk 0:01:15]} 19. Qd2 {[%clk 0:01:12]}  Bxf4 {[%clk 0:01:09]} 20. exf4 {[%clk 0:01:07]}  Qd8 {[%clk 0:01:06]} 21. Qd4 {[%clk 0:01:04]}  Rc8 {[%clk 0:01:03]} 22. Rxc8 {[%clk 0:01:02]}  Qxc8 {[%clk 0:01:02]} 23. Qxa7 {[%clk 0:00:49]}  Qb8 {[%clk 0:00:56]} 24. Qa3 {[%clk 0:00:40]}  Qb6+ {[%clk 0:00:56]} 25. Kf1 {[%clk 0:00:37]}  Rb8 {[%clk 0:00:50]} 26. Na4 {[%clk 0:00:34]}  Qd4 {[%clk 0:00:46]} 27. Qd6 {[%clk 0:00:17]}  Rc8 {[%clk 0:00:40]} 28. Nc3 {[%clk 0:00:17]}  Qd2 {[%clk 0:00:33]} 29. Kf2 {[%clk 0:00:10]}  Qxb2 {[%clk 0:00:27]} 30. Nd1 {[%clk 0:00:03]}  Qd4+ {[%clk 0:00:22]} 31. Ne3 {[%clk 0:00:04]}  Rc3 {[%clk 0:00:19]} 32. Qb8+ {[%clk 0:00:04]}  Kg7 {[%clk 0:00:19]} 33. Qe5+ {[%clk 0:00:03]}  Qxe5 {[%clk 0:00:19]} 34. fxe5 {[%clk 0:00:04]}  d4 {[%clk 0:00:17]} 35. Nd1 {[%clk 0:00:02]}  e3+ {[%clk 0:00:18]} 36. Kf3 {[%clk 0:00:02]}  Bd5+ {[%clk 0:00:18]} 37. Kf4 {[%clk 0:00:02]}  Bxg2 {[%clk 0:00:06]} 38. Nxc3 {[%clk 0:00:03]}  dxc3 {[%clk 0:00:07]} 39. Kxe3 {[%clk 0:00:03]}  Be4 {[%clk 0:00:03]} 40. a4 {[%clk 0:00:03]}  Kf8 {[%clk 0:00:03]} 41. a5 {[%clk 0:00:04]}  Ke7 {[%clk 0:00:02]} 42. a6 {[%clk 0:00:03]}  Bc6 {[%clk 0:00:02]} 43. Kd3 {[%clk 0:00:04]}  Bb5+ {[%clk 0:00:02]} 44. Kxc3 {[%clk 0:00:04]}  Bxa6 {[%clk 0:00:03]} 45. e3 {[%clk 0:00:05]}  Ke6 {[%clk 0:00:04]} 46. Kd4 {[%clk 0:00:05]}  Bb7 {[%clk 0:00:04]} 47. e4 {[%clk 0:00:05]}  Ba8 {[%clk 0:00:05]} 48. g4 {[%clk 0:00:05]}  g5 {[%clk 0:00:05]} 0-1


[Site "https://www.chess.com"]

[Event "Titled Tuesday Blitz December 14 2021"]
[White "Kamsky, Gata"]
[Black "Maksimenko, Viktor"]
[WhiteFideId "2000024"]
[BlackFideId "13710478"]
[WhiteElo "2645"]
[BlackElo "2269"]
[Result "1-0"]
[Round "08"]
[TimeControl "180+1"]
[Date "2021.12.14"]
[WhiteClock "0:01:32"]
[BlackClock "0:01:45"]

1. e4 {[%clk 0:03:00]}  c6 {[%clk 0:03:00]} 2. d3 {[%clk 0:02:59]}  d5 {[%clk 0:03:01]} 3. Nf3 {[%clk 0:02:59]}  dxe4 {[%clk 0:02:58]} 4. dxe4 {[%clk 0:02:59]}  Qxd1+ {[%clk 0:02:59]} 5. Kxd1 {[%clk 0:02:59]}  Nf6 {[%clk 0:02:59]} 6. Nfd2 {[%clk 0:02:59]}  g5 {[%clk 0:02:57]} 7. a4 {[%clk 0:02:58]}  h5 {[%clk 0:02:56]} 8. a5 {[%clk 0:02:58]}  Rg8 {[%clk 0:02:54]} 9. Nc3 {[%clk 0:02:57]}  g4 {[%clk 0:02:51]} 10. Nb3 {[%clk 0:02:42]}  Nbd7 {[%clk 0:02:49]} 11. Be3 {[%clk 0:02:21]}  Ne5 {[%clk 0:02:35]} 12. Ra4 {[%clk 0:02:17]}  Be6 {[%clk 0:02:20]} 13. Nc5 {[%clk 0:02:15]}  O-O-O {[%clk 0:02:20]} 14. Kc1 {[%clk 0:02:14]}  a6 {[%clk 0:02:08]} 15. Rb4 {[%clk 0:02:13]}  Rd7 {[%clk 0:02:01]} 16. Rxb7 {[%clk 0:02:00]}  Rxb7 {[%clk 0:01:47]} 17. Bxa6 {[%clk 0:01:59]}  Nfd7 {[%clk 0:01:46]} 18. Bxb7+ {[%clk 0:01:58]}  Kc7 {[%clk 0:01:46]} 19. Nxe6+ {[%clk 0:01:33]}  fxe6 {[%clk 0:01:45]} 20. Ba6 {[%clk 0:01:32]} 1-0


[Site "https://www.chess.com"]

[Event "Titled Tuesday Blitz December 14 2021"]
[White "Makhnev, Denis"]
[Black "Shkapenko, Pavel"]
[WhiteFideId "13707647"]
[BlackFideId "4151933"]
[WhiteElo "2491"]
[BlackElo "2386"]
[Result "1/2-1/2"]
[Round "08"]
[TimeControl "180+1"]
[Date "2021.12.14"]
[WhiteClock "0:00:09"]
[BlackClock "0:00:08"]

1. d4 {[%clk 0:03:00]}  Nf6 {[%clk 0:02:59]} 2. c4 {[%clk 0:03:01]}  e6 {[%clk 0:02:59]} 3. g3 {[%clk 0:03:01]}  Bb4+ {[%clk 0:02:59]} 4. Bd2 {[%clk 0:03:00]}  Qe7 {[%clk 0:02:59]} 5. Bg2 {[%clk 0:03:00]}  Nc6 {[%clk 0:02:59]} 6. Nf3 {[%clk 0:02:58]}  Bxd2+ {[%clk 0:02:58]} 7. Nbxd2 {[%clk 0:02:58]}  d6 {[%clk 0:02:58]} 8. O-O {[%clk 0:02:59]}  O-O {[%clk 0:02:56]} 9. e4 {[%clk 0:02:58]}  e5 {[%clk 0:02:56]} 10. d5 {[%clk 0:02:59]}  Nb8 {[%clk 0:02:56]} 11. Qc2 {[%clk 0:02:59]}  a5 {[%clk 0:02:56]} 12. Nb1 {[%clk 0:03:00]}  Bg4 {[%clk 0:02:31]} 13. Nfd2 {[%clk 0:02:55]}  c6 {[%clk 0:02:29]} 14. h3 {[%clk 0:02:52]}  Bd7 {[%clk 0:02:29]} 15. Nc3 {[%clk 0:02:52]}  Na6 {[%clk 0:02:22]} 16. Rfc1 {[%clk 0:02:51]}  Rfc8 {[%clk 0:02:19]} 17. Qd3 {[%clk 0:02:24]}  Nc5 {[%clk 0:02:14]} 18. Qe2 {[%clk 0:02:25]}  Qe8 {[%clk 0:02:05]} 19. Bf1 {[%clk 0:02:13]}  Rab8 {[%clk 0:01:53]} 20. Nb3 {[%clk 0:01:53]}  b6 {[%clk 0:01:47]} 21. dxc6 {[%clk 0:01:50]}  Bxc6 {[%clk 0:01:48]} 22. Nd2 {[%clk 0:01:50]}  Ne6 {[%clk 0:01:45]} 23. Qe3 {[%clk 0:01:50]}  Nd4 {[%clk 0:01:44]} 24. Nb3 {[%clk 0:01:47]}  Nxb3 {[%clk 0:01:41]} 25. axb3 {[%clk 0:01:46]}  Nd7 {[%clk 0:01:41]} 26. Rd1 {[%clk 0:01:43]}  Nc5 {[%clk 0:01:40]} 27. Nd5 {[%clk 0:01:43]}  Bxd5 {[%clk 0:01:23]} 28. Rxd5 {[%clk 0:01:43]}  Qc6 {[%clk 0:01:21]} 29. Rad1 {[%clk 0:01:41]}  Rd8 {[%clk 0:01:21]} 30. Qc3 {[%clk 0:00:38]}  Ne6 {[%clk 0:01:15]} 31. b4 {[%clk 0:00:37]}  axb4 {[%clk 0:01:14]} 32. Qxb4 {[%clk 0:00:37]}  Nd4 {[%clk 0:01:12]} 33. h4 {[%clk 0:00:38]}  h5 {[%clk 0:01:08]} 34. Kg2 {[%clk 0:00:30]}  g6 {[%clk 0:01:08]} 35. Ra1 {[%clk 0:00:27]}  Ne6 {[%clk 0:00:53]} 36. Qb5 {[%clk 0:00:25]}  Qxb5 {[%clk 0:00:51]} 37. Rxb5 {[%clk 0:00:25]}  Nd4 {[%clk 0:00:48]} 38. Rd5 {[%clk 0:00:25]}  Rb7 {[%clk 0:00:35]} 39. Ra6 {[%clk 0:00:22]}  Kf8 {[%clk 0:00:34]} 40. f4 {[%clk 0:00:19]}  f6 {[%clk 0:00:34]} 41. Kf2 {[%clk 0:00:12]}  Ke7 {[%clk 0:00:34]} 42. Bh3 {[%clk 0:00:13]}  Nc6 {[%clk 0:00:34]} 43. Rb5 {[%clk 0:00:13]}  Rdb8 {[%clk 0:00:33]} 44. Ke3 {[%clk 0:00:13]}  Nd4 {[%clk 0:00:33]} 45. Rd5 {[%clk 0:00:13]}  Nc2+ {[%clk 0:00:33]} 46. Kd2 {[%clk 0:00:12]}  Nb4 {[%clk 0:00:34]} 47. fxe5 {[%clk 0:00:12]}  Nxa6 {[%clk 0:00:28]} 48. exd6+ {[%clk 0:00:12]}  Kf7 {[%clk 0:00:26]} 49. e5 {[%clk 0:00:13]}  fxe5 {[%clk 0:00:25]} 50. Rxe5 {[%clk 0:00:13]}  Rd8 {[%clk 0:00:25]} 51. Rd5 {[%clk 0:00:11]}  Nb4 {[%clk 0:00:22]} 52. Rd4 {[%clk 0:00:09]}  Nc6 {[%clk 0:00:20]} 53. Rd5 {[%clk 0:00:10]}  Kf6 {[%clk 0:00:20]} 54. Kc3 {[%clk 0:00:09]}  Ne5 {[%clk 0:00:20]} 55. Kd4 {[%clk 0:00:08]}  Nf7 {[%clk 0:00:20]} 56. d7 {[%clk 0:00:08]}  Ke7 {[%clk 0:00:19]} 57. b4 {[%clk 0:00:07]}  Rbxd7 {[%clk 0:00:18]} 58. Rxd7+ {[%clk 0:00:07]}  Rxd7+ {[%clk 0:00:18]} 59. Bxd7 {[%clk 0:00:08]}  Kxd7 {[%clk 0:00:19]} 60. Kd5 {[%clk 0:00:09]}  Nh6 {[%clk 0:00:19]} 61. Ke5 {[%clk 0:00:08]}  Nf5 {[%clk 0:00:19]} 62. Kf4 {[%clk 0:00:09]}  Ke6 {[%clk 0:00:14]} 63. Kg5 {[%clk 0:00:05]}  Kf7 {[%clk 0:00:14]} 64. Kf4 {[%clk 0:00:04]}  Ne7 {[%clk 0:00:10]} 65. Kg5 {[%clk 0:00:04]}  Ke6 {[%clk 0:00:10]} 66. c5 {[%clk 0:00:04]}  bxc5 {[%clk 0:00:09]} 67. bxc5 {[%clk 0:00:04]}  Kf7 {[%clk 0:00:10]} 68. g4 {[%clk 0:00:04]}  hxg4 {[%clk 0:00:10]} 69. Kxg4 {[%clk 0:00:05]}  Kf6 {[%clk 0:00:08]} 70. h5 {[%clk 0:00:05]}  g5 {[%clk 0:00:08]} 71. h6 {[%clk 0:00:06]}  Kg6 {[%clk 0:00:05]} 72. h7 {[%clk 0:00:06]}  Kxh7 {[%clk 0:00:05]} 73. Kxg5 {[%clk 0:00:06]}  Kg7 {[%clk 0:00:05]} 74. Kf4 {[%clk 0:00:07]}  Kf6 {[%clk 0:00:06]} 75. Ke4 {[%clk 0:00:07]}  Ke6 {[%clk 0:00:06]} 76. Kd4 {[%clk 0:00:07]}  Nc6+ {[%clk 0:00:07]} 77. Kc4 {[%clk 0:00:08]}  Ke5 {[%clk 0:00:07]} 78. Kb5 {[%clk 0:00:08]}  Kd5 {[%clk 0:00:07]} 79. Kb6 {[%clk 0:00:09]}  Nd4 {[%clk 0:00:08]} 80. c6 {[%clk 0:00:09]}  Nxc6 {[%clk 0:00:08]} 1/2-1/2


[Site "https://www.chess.com"]

[Event "Titled Tuesday Blitz December 14 2021"]
[White "Moskalenko, Alexander"]
[Black "Donchenko, Alexander"]
[WhiteFideId "4155351"]
[BlackFideId "24603295"]
[WhiteElo "2515"]
[BlackElo "2494"]
[Result "0-1"]
[Round "08"]
[TimeControl "180+1"]
[Date "2021.12.14"]
[WhiteClock "0:00:03"]
[BlackClock "0:00:05"]

1. d4 {[%clk 0:02:56]}  Nf6 {[%clk 0:02:59]} 2. c4 {[%clk 0:02:56]}  e6 {[%clk 0:03:00]} 3. g3 {[%clk 0:02:56]}  c5 {[%clk 0:03:00]} 4. Nf3 {[%clk 0:02:55]}  cxd4 {[%clk 0:02:59]} 5. Nxd4 {[%clk 0:02:56]}  d5 {[%clk 0:02:59]} 6. Bg2 {[%clk 0:02:51]}  e5 {[%clk 0:03:00]} 7. Nb5 {[%clk 0:02:50]}  d4 {[%clk 0:02:48]} 8. O-O {[%clk 0:02:38]}  a6 {[%clk 0:02:45]} 9. N5a3 {[%clk 0:02:37]}  Nc6 {[%clk 0:02:44]} 10. e3 {[%clk 0:02:34]}  d3 {[%clk 0:02:35]} 11. Nc3 {[%clk 0:02:31]}  Bf5 {[%clk 0:02:25]} 12. e4 {[%clk 0:02:30]}  Bg4 {[%clk 0:02:23]} 13. f3 {[%clk 0:02:30]}  Be6 {[%clk 0:01:54]} 14. Be3 {[%clk 0:02:26]}  Bxa3 {[%clk 0:01:46]} 15. bxa3 {[%clk 0:02:24]}  Bxc4 {[%clk 0:01:47]} 16. Na4 {[%clk 0:02:16]}  b5 {[%clk 0:01:42]} 17. Nb6 {[%clk 0:02:13]}  Rb8 {[%clk 0:01:34]} 18. Nxc4 {[%clk 0:02:14]}  bxc4 {[%clk 0:01:35]} 19. Qa4 {[%clk 0:02:13]}  Qd7 {[%clk 0:01:29]} 20. Qxc4 {[%clk 0:02:10]}  O-O {[%clk 0:01:28]} 21. Rfd1 {[%clk 0:02:11]}  Rfd8 {[%clk 0:01:25]} 22. Bf1 {[%clk 0:02:11]}  Nd4 {[%clk 0:01:18]} 23. Bxd4 {[%clk 0:02:07]}  exd4 {[%clk 0:01:17]} 24. Qxa6 {[%clk 0:02:01]}  Rb2 {[%clk 0:01:05]} 25. Qxd3 {[%clk 0:01:55]}  h5 {[%clk 0:01:03]} 26. Rd2 {[%clk 0:01:47]}  Rxd2 {[%clk 0:00:58]} 27. Qxd2 {[%clk 0:01:48]}  d3 {[%clk 0:00:59]} 28. Rd1 {[%clk 0:01:46]}  Qa7+ {[%clk 0:00:58]} 29. Kg2 {[%clk 0:01:44]}  Qxa3 {[%clk 0:00:58]} 30. Bxd3 {[%clk 0:01:44]}  h4 {[%clk 0:00:51]} 31. Qe2 {[%clk 0:01:40]}  Rb8 {[%clk 0:00:45]} 32. Rd2 {[%clk 0:01:30]}  hxg3 {[%clk 0:00:43]} 33. hxg3 {[%clk 0:01:29]}  Qe7 {[%clk 0:00:36]} 34. e5 {[%clk 0:01:23]}  Nh5 {[%clk 0:00:33]} 35. f4 {[%clk 0:01:16]}  g6 {[%clk 0:00:32]} 36. Bc4 {[%clk 0:00:56]}  Rc8 {[%clk 0:00:27]} 37. Qe4 {[%clk 0:00:50]}  Kg7 {[%clk 0:00:22]} 38. Bb3 {[%clk 0:00:30]}  Rc3 {[%clk 0:00:20]} 39. Rd3 {[%clk 0:00:31]}  Rc1 {[%clk 0:00:15]} 40. Qd5 {[%clk 0:00:27]}  Qa7 {[%clk 0:00:12]} 41. Rd4 {[%clk 0:00:20]}  Rc3 {[%clk 0:00:11]} 42. e6 {[%clk 0:00:16]}  Rxg3+ {[%clk 0:00:10]} 43. Kh2 {[%clk 0:00:16]}  fxe6 {[%clk 0:00:10]} 44. Qe5+ {[%clk 0:00:16]}  Kh7 {[%clk 0:00:07]} 45. Bxe6 {[%clk 0:00:15]}  Rd3 {[%clk 0:00:05]} 46. Rxd3 {[%clk 0:00:08]}  Qf2+ {[%clk 0:00:05]} 47. Kh3 {[%clk 0:00:07]}  Nxf4+ {[%clk 0:00:02]} 48. Kg4 {[%clk 0:00:06]}  Nxd3 {[%clk 0:00:03]} 49. Qc7+ {[%clk 0:00:05]}  Kh6 {[%clk 0:00:03]} 50. Qg3 {[%clk 0:00:02]}  Qe2+ {[%clk 0:00:03]} 51. Kh3 {[%clk 0:00:03]}  Qxe6+ {[%clk 0:00:03]} 52. Kh2 {[%clk 0:00:04]}  Qe2+ {[%clk 0:00:03]} 53. Kh3 {[%clk 0:00:04]}  Qe6+ {[%clk 0:00:03]} 54. Kh2 {[%clk 0:00:05]}  Qe5 {[%clk 0:00:04]} 55. a4 {[%clk 0:00:04]}  Qxg3+ {[%clk 0:00:04]} 56. Kxg3 {[%clk 0:00:05]}  Nc5 {[%clk 0:00:04]} 57. a5 {[%clk 0:00:03]}  g5 {[%clk 0:00:05]} 0-1


[Site "https://www.chess.com"]